bitfinex/quotes_SOLUSD_20250507
["timestamp","ask_amount","ask_price","bid_price","bid_amount"]
[1746590511424,5.12033954,146.5,146.47,6.82733665]
[1746590511614,5.12033954,146.49,146.47,6.82733665]
[1746590513030,9.2013056,146.51,146.47,6.82733665]
[1746590513336,9.2013056,146.5,146.47,6.82733665]
[1746590520945,5.11729686,146.49,146.47,6.82733665]
[1746590521319,9.2013056,146.48,146.46,22.76772725]
[1746590521524,9.2013056,146.48,146.45,6.82805916]
[1746590521525,9.2013056,146.47,146.45,6.82805916]
[1746590521814,9.2013056,146.46,146.45,6.82805916]
[1746590522034,9.2013056,146.47,146.45,6.82805916]
[1746590522419,9.2013056,146.46,146.43,6.8290356]
[1746590522614,14.31875963,146.45,146.42,15.92]
[1746590523139,9.2013056,146.44,146.42,15.92]
[1746590523344,9.2013056,146.43,146.42,15.92]
[1746590523539,9.2013056,146.43,146.4,6.83046265]
[1746590524029,5.11745403,146.42,146.4,6.83046265]
[1746590524831,5.11745403,146.42,146.39,6.83106769]
[1746590525022,5.11745403,146.41,146.39,6.83106769]
[1746590525453,5.11745403,146.41,146.39,16.03237329]
[1746590526133,5.11745403,146.4,146.39,16.03237329]
[1746590527244,5.11745403,146.4,146.39,18.43237329]
[1746590528445,9.2013056,146.43,146.39,18.43237329]
[1746590531449,6.8279988,146.46,146.4,9.2013056]
[1746590531634,9.2013056,146.44,146.4,9.2013056]
[1746590532033,5.10704208,146.43,146.4,9.2013056]
[1746590532653,5.10704208,146.43,146.41,6.83013455]
[1746590532856,5.10704208,146.42,146.41,6.83013455]
[1746590533731,9.2013056,146.44,146.41,6.83013455]
[1746590534753,137.7,146.45,146.41,16.03144015]
[1746590534955,9.2013056,146.48,146.43,9.2013056]
[1746590535566,146.9013056,146.5,146.45,9.2013056]
[1746590535763,137.7,146.5,146.46,9.2013056]
[1746590535930,146.9013056,146.5,146.46,9.2013056]
[1746590537260,146.9013056,146.5,146.47,6.82733665]
[1746590537463,9.2013056,146.5,146.47,6.82733665]
[1746590538662,9.2013056,146.5,146.46,6.82780281]
[1746590539357,9.2013056,146.5,146.46,16.02910841]
[1746590539762,9.2013056,146.5,146.47,2.4]
[1746590540859,9.2013056,146.5,146.47,9.2272924]
[1746590542969,144.52517481,146.52,146.47,9.2272924]
[1746590543368,9.2013056,146.5,146.47,9.2272924]
[1746590543539,9.2013056,146.5,146.47,6.8272924]
[1746590547065,5.09933473,146.49,146.47,6.8272924]
[1746590547968,5.09933473,146.48,146.46,16.02893976]
[1746590548555,5.09933473,146.48,146.46,6.82763416]
[1746590548756,9.2013056,146.49,146.46,6.82763416]
[1746590550458,137.7,146.52,146.48,9.2013056]
[1746590550660,146.9013056,146.52,146.48,9.2013056]
[1746590550861,5.09856892,146.51,146.47,9.2013056]
[1746590551048,14.29987452,146.51,146.47,9.2013056]
[1746590551449,9.2013056,146.5,146.46,16.02893976]
[1746590551658,14.29987452,146.51,146.48,6.82687056]
[1746590551856,5.09856892,146.5,146.48,6.82687056]
[1746590552263,5.09856892,146.5,146.48,16.02817616]
[1746590552748,5.09856892,146.5,146.49,27.85095446]
[1746590552948,5.09856892,146.52,146.49,27.85095446]
[1746590553467,5.09856892,146.52,146.51,27.85095446]
[1746590553769,5.09856892,146.52,146.51,34.67642712]
[1746590554558,9.2013056,146.57,146.52,18.64964886]
[1746590554751,9.2013056,146.57,146.52,27.85095446]
[1746590555651,9.2013056,146.57,146.53,9.2013056]
[1746590555652,5.09319674,146.56,146.53,9.2013056]
[1746590555852,5.09319674,146.56,146.53,14.35806711]
[1746590556278,5.09319674,146.56,146.54,6.82407533]
[1746590556453,5.09319674,146.55,146.54,6.82407533]
[1746590557760,14.35806711,146.57,146.54,6.82407533]
[1746590559254,14.35806711,146.56,146.54,6.82407533]
[1746590560369,14.35806711,146.56,146.54,9.22407533]
[1746590560579,14.35806711,146.55,146.54,2.4]
[1746590560979,14.35806711,146.55,146.53,6.82434367]
[1746590561278,14.35806711,146.55,146.52,6.82500682]
[1746590563380,14.35806711,146.55,146.52,14.35806711]
[1746590564488,14.35806711,146.56,146.52,14.35806711]
[1746590565376,6.8219412,146.59,146.53,14.35806711]
[1746590565560,14.35806711,146.57,146.53,14.35806711]
[1746590566081,14.35806711,146.58,146.53,14.35806711]
[1746590566455,14.35806711,146.57,146.54,6.82407533]
[1746590567175,14.35806711,146.57,146.53,21.18251675]
[1746590567387,14.35806711,146.55,146.51,21.18353977]
[1746590569880,14.35806711,146.55,146.51,6.82547266]
[1746590570063,14.35806711,146.55,146.48,25.28256512]
[1746590570385,14.35806711,146.51,146.47,37.10540376]
[1746590570758,14.35806711,146.51,146.47,39.50540376]
[1746590573086,14.35806711,146.52,146.47,39.50540376]
[1746590573384,14.35806711,146.52,146.48,14.35806711]
[1746590573759,14.35806711,146.52,146.48,21.18475736]
[1746590575282,14.35806711,146.52,146.48,6.82669025]
[1746590575486,14.35806711,146.52,146.48,21.18475736]
[1746590576976,14.35806711,146.52,146.48,6.82669025]
[1746590578461,137.7,146.54,146.5,14.35806711]
[1746590578667,137.7,146.54,146.51,14.35806711]
[1746590579074,137.7,146.54,146.52,14.35806711]
[1746590579275,14.35806711,146.56,146.52,14.35806711]
[1746590579984,26.0,146.57,146.52,14.35806711]
[1746590580152,14.35806711,146.56,146.52,14.35806711]
[1746590580479,14.35806711,146.56,146.53,6.82454104]
[1746590581478,14.35806711,146.55,146.53,6.82454104]
[1746590582492,14.35806711,146.55,146.52,6.82500682]
[1746590584873,14.35806711,146.56,146.52,6.82500682]
[1746590585284,32.82268363,146.57,146.52,9.22500682]
[1746590585495,14.35806711,146.57,146.53,14.35806711]
[1746590585991,14.35806711,146.57,146.52,39.50307393]
[1746590587466,137.7,146.58,146.52,25.14500682]
[1746590587671,14.35806711,146.57,146.52,39.50307393]
[1746590589564,14.35806711,146.55,146.52,18.32]
[1746590589773,14.35806711,146.55,146.51,6.82531743]
[1746590589985,6.8228626,146.57,146.51,21.18338454]
[1746590590187,14.35806711,146.56,146.51,21.18338454]
[1746590590769,21.18129955,146.56,146.51,21.18338454]
[1746590590971,14.35806711,146.55,146.51,21.18338454]
[1746590594293,14.35806711,146.55,146.51,6.82531743]
[1746590595093,14.35806711,146.54,146.49,6.82640453]
[1746590595297,14.35806711,146.52,146.47,31.84]
[1746590595475,14.35806711,146.51,146.47,46.19806711]
[1746590595675,14.35806711,146.51,146.48,2.4]
[1746590596185,14.35806711,146.52,146.48,9.22670521]
[1746590596390,14.35806711,146.52,146.48,23.58477232]
[1746590596696,14.35806711,146.53,146.49,14.35806711]
[1746590597297,5.10575753,146.52,146.49,14.35806711]
[1746590597498,5.10575753,146.52,146.51,14.35806711]
[1746590598371,5.10575753,146.52,146.51,21.18353977]
[1746590600613,137.7,146.54,146.51,21.18353977]
[1746590601083,152.05806711,146.54,146.51,6.82547266]
[1746590602599,137.7,146.54,146.51,6.82547266]
[1746590604405,137.7,146.54,146.51,14.35806711]
[1746590607404,5.10623061,146.53,146.51,21.18341711]
[1746590607590,5.10623061,146.53,146.5,21.18379529]
[1746590608503,137.7,146.54,146.5,21.18379529]
[1746590608679,5.10622785,146.53,146.5,21.18379529]
[1746590608996,5.10622785,146.53,146.51,14.35806711]
[1746590610112,5.10622785,146.52,146.51,21.18353977]
[1746590610902,5.10622785,146.52,146.51,6.82547266]
[1746590611386,5.10622785,146.52,146.5,6.82576729]
[1746590612301,152.05806711,146.54,146.5,6.82576729]
[1746590612495,14.35806711,146.52,146.49,22.72624612]
[1746590613708,5.10808179,146.51,146.49,22.72624612]
[1746590614586,5.10808179,146.51,146.49,37.08431323]
[1746590615108,5.10808179,146.5,146.49,37.08431323]
[1746590615304,5.10808179,146.5,146.49,55.73396209]
[1746590616015,5.10808179,146.55,146.5,18.64964886]
[1746590616203,5.10808179,146.55,146.51,14.35806711]
[1746590616716,5.10808179,146.55,146.51,16.75806711]
[1746590617311,5.10808179,146.54,146.51,16.75806711]
[1746590618102,14.35806711,146.56,146.52,6.82500682]
[1746590618507,14.35806711,146.55,146.52,6.82500682]
[1746590619295,137.7,146.57,146.52,21.18307393]
[1746590619496,14.35806711,146.56,146.52,21.18307393]
[1746590620219,137.7,146.57,146.52,21.18307393]
[1746590620515,14.35806711,146.56,146.52,21.18307393]
[1746590622017,14.35806711,146.56,146.52,6.82500682]
[1746590622506,21.18124074,146.56,146.52,6.82500682]
[1746590622715,14.35806711,146.56,146.52,21.18307393]
[1746590622915,152.05806711,146.57,146.52,21.18307393]
[1746590624616,14.35806711,146.56,146.52,21.18307393]
[1746590625320,137.7,146.57,146.52,21.18307393]
[1746590625521,14.35806711,146.56,146.52,21.18307393]
[1746590626022,137.7,146.57,146.52,21.18307393]
[1746590626207,152.05806711,146.57,146.52,21.18307393]
[1746590627622,14.35806711,146.56,146.52,21.18307393]
[1746590628626,137.7,146.57,146.52,21.18307393]
[1746590628924,14.35806711,146.56,146.52,21.18307393]
[1746590629924,5.11318891,146.55,146.52,21.18307393]
[1746590630703,5.11318891,146.54,146.52,21.18307393]
[1746590631123,5.11318891,146.54,146.52,6.82500682]
[1746590631533,14.35806711,146.56,146.52,6.82500682]
[1746590633739,9.19114222,146.56,146.52,6.82500682]
[1746590637614,9.19114222,146.56,146.52,16.01614904]
[1746590639432,9.19114222,146.56,146.52,6.82500682]
[1746590641436,137.7,146.57,146.52,16.01614904]
[1746590641736,146.89114222,146.57,146.52,16.01614904]
[1746590642632,5.11538786,146.56,146.52,16.01614904]
[1746590643429,5.11538786,146.56,146.53,9.19114222]
[1746590643816,9.19114222,146.58,146.54,9.19114222]
[1746590644724,137.7,146.6,146.54,9.19114222]
[1746590644922,146.89114222,146.6,146.55,9.19114222]
[1746590645346,137.7,146.6,146.57,9.19114222]
[1746590645512,137.7,146.6,146.58,6.82221312]
[1746590646747,137.7,146.6,146.57,16.0138208]
[1746590647053,147.41780082,146.63,146.58,9.19114222]
[1746590647417,147.41780082,146.63,146.58,25.11114222]
[1746590647916,147.41780082,146.63,146.59,9.19114222]
[1746590648112,138.2266586,146.63,146.58,25.11114222]
[1746590648312,9.19114222,146.62,146.58,25.11114222]
[1746590649438,9.19114222,146.61,146.58,22.74206144]
[1746590649915,9.19114222,146.6,146.58,15.92]
[1746590650232,9.19114222,146.59,146.58,15.92]
[1746590651740,14.35421761,146.59,146.58,15.92]
[1746590651942,14.35421761,146.59,146.56,15.9]
[1746590652242,14.35421761,146.6,146.56,30.25421761]
[1746590652742,14.35421761,146.6,146.56,37.07718315]
[1746590652942,144.5205057,146.62,146.56,37.07718315]
[1746590653237,14.35421761,146.61,146.57,14.35421761]
[1746590654552,137.7,146.62,146.58,6.82221312]
[1746590654717,14.35421761,146.61,146.58,6.82221312]
[1746590654916,152.05421761,146.62,146.58,21.17643073]
[1746590655116,14.35421761,146.61,146.57,21.17670523]
[1746590655527,14.35421761,146.59,146.56,15.9]
[1746590656716,14.35421761,146.59,146.56,22.72313153]
[1746590656916,14.35421761,146.59,146.57,2.4]
[1746590657147,6.82105107,146.61,146.57,2.4]
[1746590657442,14.35421761,146.6,146.57,2.4]
[1746590658114,5.09789167,146.59,146.57,2.4]
[1746590658732,5.09789167,146.59,146.56,22.72313153]
[1746590658936,19.45210928,146.59,146.56,15.9]
[1746590659246,5.09789167,146.58,146.56,15.9]
[1746590659628,19.45210928,146.58,146.55,6.82343313]
[1746590660535,5.09789167,146.57,146.55,6.82343313]
[1746590661436,5.09789167,146.56,146.54,6.82389991]
[1746590661747,5.09789167,146.56,146.54,9.22389991]
[1746590662242,5.09789167,146.55,146.54,9.22389991]
[1746590662442,5.09789167,146.55,146.54,23.57811752]
[1746590665027,5.09789167,146.55,146.54,42.22776638]
[1746590665345,5.09789167,146.59,146.55,18.64964886]
[1746590665526,5.09789167,146.59,146.58,14.35421761]
[1746590666037,14.35421761,146.62,146.58,14.35421761]
[1746590666537,14.35421761,146.62,146.59,6.82174773]
[1746590667352,14.88087621,146.63,146.59,6.82174773]
[1746590668128,0.5266586,146.63,146.59,21.17596534]
[1746590668453,14.88087621,146.63,146.59,21.17596534]
[1746590669244,14.35421761,146.62,146.59,9.22174773]
[1746590669441,14.88087621,146.63,146.59,23.57596534]
[1746590670058,0.5266586,146.63,146.59,23.57596534]
[1746590670259,14.88087621,146.63,146.59,23.57596534]
[1746590670857,5.09482183,146.62,146.59,23.57596534]
[1746590671730,5.09482183,146.61,146.59,23.57596534]
[1746590672559,14.88087621,146.63,146.59,2.4]
[1746590672560,152.05421761,146.6,146.59,2.4]
[1746590672754,152.05421761,146.6,146.55,21.17782729]
[1746590673544,5.09460224,146.59,146.55,21.17782729]
[1746590673745,5.09460224,146.59,146.58,18.64964886]
[1746590673934,5.09460224,146.59,146.58,105.19808408]
[1746590674649,0.5266586,146.63,146.58,105.19808408]
[1746590674650,0.5266586,146.63,146.58,107.59808408]
[1746590674853,0.5266586,146.63,146.62,14.35421761]
[1746590675234,0.5266586,146.63,146.58,44.64964886]
[1746590675452,0.5266586,146.63,146.61,14.35421761]
[1746590675760,0.5266586,146.63,146.62,14.35421761]
[1746590677147,0.5266586,146.63,146.61,14.35421761]
[1746590677560,0.5266586,146.63,146.62,14.35421761]
[1746590678160,0.5266586,146.63,146.62,39.8242184]
[1746590678465,0.5266586,146.63,146.62,21.17456954]
[1746590678762,0.5266586,146.63,146.62,14.35421761]
[1746590679864,0.5266586,146.63,146.62,33.00386647]
[1746590680242,0.5266586,146.63,146.62,39.8242184]
[1746590681361,0.5266586,146.63,146.62,6.82035193]
[1746590681960,0.5266586,146.63,146.62,21.17456954]
[1746590685171,0.5266586,146.63,146.62,23.57456954]
[1746590699295,0.5266586,146.63,146.62,9.22035193]
[1746590699611,0.5266586,146.63,146.62,6.82035193]
[1746590699964,0.5266586,146.63,146.61,6.82063161]
[1746590701070,0.5266586,146.63,146.62,14.35421761]
[1746590701265,0.5266586,146.63,146.61,6.82063161]
[1746590701465,0.5266586,146.63,146.61,21.17484922]
[1746590701688,0.5266586,146.63,146.62,14.35421761]
[1746590701879,0.5266586,146.63,146.61,21.17484922]
[1746590710705,0.5266586,146.63,146.59,16.08]
[1746590710895,14.35421761,146.62,146.59,16.08]
[1746590711086,14.35421761,146.6,146.56,22.90295216]
[1746590711276,14.35421761,146.61,146.56,37.25716977]
[1746590711673,14.35421761,146.58,146.56,16.08]
[1746590711879,5.10567927,146.57,146.56,16.08]
[1746590713092,5.10567927,146.57,146.56,22.9031441]
[1746590715404,5.10567927,146.57,146.56,37.25736171]
[1746590717598,5.10567927,146.57,146.56,16.08]
[1746590718180,15.97671761,146.59,146.56,16.08]
[1746590718503,15.97671761,146.59,146.55,21.17763565]
[1746590718799,14.35421761,146.56,146.52,6.82487773]
[1746590719005,137.7,146.58,146.52,21.17909534]
[1746590719187,5.10003586,146.55,146.52,6.82487773]
[1746590719386,5.10003586,146.55,146.53,14.35421761]
[1746590719704,5.10003586,146.55,146.52,6.82487773]
[1746590719902,5.10003586,146.55,146.51,37.25953726]
[1746590719903,5.10003586,146.54,146.51,37.25953726]
[1746590720208,5.10003586,146.54,146.5,21.17998865]
[1746590720380,5.10003586,146.54,146.51,14.35421761]
[1746590721002,5.10003586,146.54,146.5,6.82577104]
[1746590721179,14.35421761,146.55,146.51,14.35421761]
[1746590721804,14.35421761,146.55,146.5,6.82577104]
[1746590722005,14.35421761,146.55,146.51,14.35421761]
[1746590722211,152.05421761,146.55,146.51,21.17968687]
[1746590722503,137.7,146.55,146.51,21.17968687]
[1746590722694,137.7,146.55,146.52,14.35421761]
[1746590722893,152.05421761,146.55,146.51,21.17968687]
[1746590723204,137.7,146.55,146.51,21.17968687]
[1746590723507,137.7,146.55,146.52,14.35421761]
[1746590723910,152.05421761,146.55,146.51,6.82546926]
[1746590724202,137.7,146.55,146.51,21.17968687]
[1746590724405,152.05421761,146.55,146.51,21.17968687]
[1746590726403,152.05421761,146.55,146.51,6.82546926]
[1746590726613,137.7,146.55,146.51,21.17968687]
[1746590726788,152.05421761,146.55,146.51,21.17968687]
[1746590727917,152.05421761,146.55,146.5,6.82593856]
[1746590728097,152.05421761,146.55,146.51,14.35421761]
[1746590729817,137.7,146.55,146.51,14.35421761]
[1746590730117,152.05421761,146.55,146.51,21.17942289]
[1746590730516,137.7,146.55,146.51,21.17942289]
[1746590730814,152.05421761,146.55,146.51,21.17942289]
[1746590737118,152.05421761,146.55,146.5,21.18015617]
[1746590737322,137.7,146.55,146.5,21.18015617]
[1746590737533,152.05421761,146.55,146.5,21.18015617]
[1746590738629,14.35421761,146.54,146.5,6.82593856]
[1746590738805,14.35421761,146.54,146.5,21.18015617]
[1746590740726,152.05421761,146.55,146.5,21.18015617]
[1746590743830,146.89252202,146.55,146.5,16.01846058]
[1746590748835,137.7,146.55,146.52,9.19252202]
[1746590749020,137.7,146.55,146.54,9.19252202]
[1746590749221,137.7,146.58,146.51,57.08603694]
[1746590749422,146.89252202,146.58,146.54,9.19252202]
[1746590749809,146.89252202,146.58,146.5,23.89078497]
[1746590749810,14.35590564,146.56,146.5,23.89078497]
[1746590750016,5.08198378,146.57,146.51,14.35590564]
[1746590750217,14.35590564,146.56,146.52,14.35590564]
[1746590751031,14.35590564,146.56,146.52,21.18051065]
[1746590751336,14.35590564,146.55,146.52,6.82460501]
[1746590751523,14.35590564,146.55,146.51,21.18117221]
[1746590751844,14.35590564,146.55,146.51,6.82526657]
[1746590752014,14.35590564,146.55,146.51,21.18117221]
[1746590752216,14.35590564,146.54,146.5,6.82584422]
[1746590752611,137.7,146.55,146.49,23.02621247]
[1746590752811,14.35590564,146.52,146.49,23.02621247]
[1746590753131,14.35590564,146.53,146.49,23.02621247]
[1746590753445,14.35590564,146.53,146.49,37.38211811]
[1746590755338,144.52421286,146.54,146.49,37.38211811]
[1746590755539,158.8801185,146.54,146.49,37.38211811]
[1746590756048,152.05590564,146.54,146.5,21.18181715]
[1746590758347,137.7,146.54,146.52,14.35590564]
[1746590759721,137.7,146.54,146.51,14.35590564]
[1746590760241,137.7,146.54,146.52,14.35590564]
[1746590760446,137.7,146.54,146.52,21.18059363]
[1746590761749,137.7,146.54,146.51,14.35590564]
[1746590763838,137.7,146.54,146.52,21.18091246]
[1746590765433,137.7,146.57,146.53,14.35590564]
[1746590765749,137.7,146.57,146.54,14.35590564]
[1746590767745,137.7,146.57,146.55,6.82360968]
[1746590768046,137.7,146.57,146.54,14.35590564]
[1746590768250,137.7,146.57,146.54,21.1797238]
[1746590769940,137.7,146.57,146.53,21.18025619]
[1746590770152,152.05590564,146.57,146.53,21.18025619]
[1746590770953,152.05590564,146.57,146.53,6.82435055]
[1746590771146,152.05590564,146.57,146.53,21.18025619]
[1746590772548,5.11200629,146.56,146.53,21.18025619]
[1746590773355,5.11200629,146.55,146.53,21.18025619]
[1746590774134,152.05590564,146.57,146.53,21.18025619]
[1746590774457,5.11163765,146.54,146.53,21.18025619]
[1746590776156,5.11163765,146.54,146.53,14.35590564]
[1746590777561,5.11163765,146.54,146.5,21.18173372]
[1746590777859,19.46754329,146.54,146.5,21.18173372]
[1746590778259,14.35590564,146.53,146.49,37.38213478]
[1746590778434,14.35590564,146.53,146.49,16.2]
[1746590778751,14.35590564,146.52,146.49,16.2]
[1746590779133,19.46754329,146.52,146.49,16.2]
[1746590779763,5.11163765,146.52,146.49,30.55590564]
[1746590780058,5.11163765,146.51,146.49,30.55590564]
[1746590780461,5.11163765,146.51,146.49,14.35590564]
[1746590780633,5.11163765,146.51,146.48,6.82653195]
[1746590780829,14.35590564,146.52,146.48,21.18243759]
[1746590780830,21.18095932,146.52,146.48,21.18243759]
[1746590781458,6.82505368,146.52,146.48,21.18243759]
[1746590781659,21.18095932,146.52,146.48,6.82653195]
[1746590781843,14.35590564,146.52,146.48,6.82653195]
[1746590782248,21.18096312,146.52,146.47,23.08717203]
[1746590782444,14.35590564,146.51,146.47,37.44307767]
[1746590782763,5.11062777,146.5,146.47,37.44307767]
[1746590783369,5.11062777,146.49,146.47,37.44307767]
[1746590783659,5.11062777,146.49,146.47,16.26]
[1746590784565,26.29302527,146.49,146.44,37.44448155]
[1746590784761,5.11062777,146.48,146.44,37.44448155]
[1746590786264,5.11062777,146.47,146.44,37.44448155]
[1746590787169,5.11062777,146.47,146.45,14.35590564]
[1746590787353,5.11062777,146.47,146.45,21.18384768]
[1746590787555,14.35590564,146.49,146.45,21.18384768]
[1746590788245,152.05590564,146.49,146.45,21.18384768]
[1746590788441,5.10261063,146.48,146.47,14.35590564]
[1746590793272,5.10261063,146.48,146.47,21.18324229]
[1746590794974,5.10261063,146.48,146.47,6.82733665]
[1746590806579,5.10261063,146.48,146.46,16.02552356]
[1746590807488,137.7,146.49,146.46,16.02552356]
[1746590809985,5.0932914,146.48,146.46,16.02552356]
[1746590810877,137.7,146.49,146.45,6.82826903]
[1746590811079,137.7,146.49,146.46,9.19787676]
[1746590812280,9.19787676,146.48,146.44,32.28643753]
[1746590812482,9.19787676,146.48,146.44,23.08856077]
[1746590812680,9.19787676,146.48,146.44,32.28643753]
[1746590813284,14.29393917,146.47,146.44,16.26]
[1746590814397,5.09606241,146.46,146.44,16.26]
[1746590815194,5.09606241,146.45,146.44,16.26]
[1746590817383,5.09606241,146.45,146.42,9.19787676]
[1746590818500,5.09606241,146.44,146.42,9.19787676]
[1746590818802,5.09606241,146.44,146.42,6.82961971]
[1746590818992,5.09606241,146.44,146.43,9.19787676]
[1746590819202,5.09606241,146.44,146.43,27.84752562]
[1746590819497,5.09606241,146.44,146.43,35.22382362]
[1746590819690,5.09606241,146.44,146.43,7.376298]
[1746590819894,5.09606241,146.44,146.43,16.57417476]
[1746590820802,5.09606241,146.44,146.43,23.40337642]
[1746590823210,137.7,146.47,146.43,42.05302528]
[1746590823410,137.7,146.47,146.46,9.19787676]
[1746590824103,142.81101118,146.47,146.46,9.19787676]
[1746590824690,142.81101118,146.47,146.46,16.02567957]
[1746590824894,5.11101118,146.47,146.46,16.02567957]
[1746590825123,5.11101118,146.47,146.46,34.67532843]
[1746590825301,6.82422112,146.54,146.46,34.67532843]
[1746590825302,6.82370084,146.55,146.46,51.74483546]
[1746590825491,137.7,146.54,146.51,9.19787676]
[1746590825685,137.7,146.54,146.51,14.36237646]
[1746590826191,137.7,146.54,146.52,14.36237646]
[1746590827010,137.7,146.54,146.5,14.36237646]
[1746590827192,152.06237646,146.54,146.5,14.36237646]
[1746590827394,137.7,146.54,146.51,14.36237646]
[1746590828116,137.7,146.54,146.52,14.36237646]
[1746590828709,137.7,146.54,146.51,14.36237646]
[1746590828904,137.7,146.54,146.53,14.36237646]
[1746590829611,22.11007646,146.57,146.53,14.36237646]
[1746590830017,14.36237646,146.55,146.51,30.52237646]
[1746590830195,14.36237646,146.54,146.51,16.16]
[1746590830717,14.36237646,146.52,146.48,6.82675002]
[1746590830902,14.36237646,146.52,146.48,21.18912648]
[1746590831213,14.36237646,146.52,146.48,6.82675002]
[1746590831419,14.36237646,146.52,146.48,21.18912648]
[1746590831611,14.36237646,146.52,146.48,6.82675002]
[1746590831790,14.36237646,146.52,146.48,21.18912648]
[1746590832911,21.18724774,146.53,146.49,14.36237646]
[1746590833296,158.88659304,146.54,146.5,14.36237646]
[1746590836216,137.7,146.53,146.5,14.36237646]
[1746590836513,152.06237646,146.53,146.49,21.18873366]
[1746590837117,158.88696292,146.53,146.49,14.36237646]
[1746590839321,158.88696292,146.53,146.48,21.18906561]
[1746590839727,14.36237646,146.51,146.47,46.98237646]
[1746590840100,14.36237646,146.5,146.47,16.16]
[1746590840608,14.36237646,146.51,146.47,16.16]
[1746590842045,21.1880084,146.51,146.47,16.16]
[1746590842631,21.1880084,146.51,146.47,30.52237646]
[1746590843433,14.36237646,146.5,146.47,16.16]
[1746590844102,14.36237646,146.49,146.47,16.16]
[1746590845530,14.36237646,146.49,146.45,21.1905147]
[1746590845713,14.36237646,146.49,146.43,37.61123429]
[1746590845714,14.36237646,146.47,146.43,37.61123429]
[1746590845914,5.10309701,146.46,146.43,37.61123429]
[1746590847216,5.10309701,146.45,146.43,37.61123429]
[1746590848331,5.10309701,146.44,146.43,37.61123429]
[1746590848703,5.10309701,146.44,146.43,30.78237646]
[1746590850829,5.10309701,146.44,146.43,37.61157812]
[1746590852145,158.88929586,146.48,146.43,37.61157812]
[1746590852305,137.7,146.47,146.44,14.36237646]
[1746590853008,5.09934895,146.46,146.44,14.36237646]
[1746590853209,5.09934895,146.46,146.43,37.61157812]
[1746590853720,5.09934895,146.46,146.43,16.42]
[1746590853910,5.09934895,146.45,146.43,16.42]
[1746590854908,5.09934895,146.44,146.42,14.36237646]
[1746590856126,21.19033128,146.46,146.42,14.36237646]
[1746590856935,6.82795482,146.46,146.42,14.36237646]
[1746590857135,5.09774439,146.45,146.42,21.19202401]
[1746590857937,5.09774439,146.44,146.42,21.19202401]
[1746590858232,5.09774439,146.44,146.43,14.36237646]
[1746590861935,5.09774439,146.44,146.42,21.19202401]
[1746590862237,5.09774439,146.44,146.43,14.36237646]
[1746590870246,166.66201395,146.47,146.42,21.19202401]
[1746590871128,14.36237646,146.46,146.42,14.36237646]
[1746590871448,5.09494068,146.45,146.42,14.36237646]
[1746590872255,5.09494068,146.44,146.42,21.1920102]
[1746590873649,166.66209863,146.47,146.42,21.1920102]
[1746590873857,161.50257338,146.47,146.42,16.03248495]
[1746590874957,5.09847102,146.46,146.42,16.03248495]
[1746590875757,5.09847102,146.46,146.43,9.20285121]
[1746590875943,5.09847102,146.46,146.45,9.20285121]
[1746590876141,137.7,146.47,146.45,9.20285121]
[1746590876462,137.7,146.47,146.46,9.20285121]
[1746590877151,137.7,146.47,146.46,16.03065402]
[1746590877351,142.799524,146.47,146.46,16.03065402]
[1746590877756,5.099524,146.47,146.46,21.19588818]
[1746590878048,5.099524,146.47,146.46,39.84553704]
[1746590878256,137.7,146.5,146.46,56.91504407]
[1746590878455,137.7,146.53,146.49,14.36808537]
[1746590879349,5.10071666,146.52,146.49,14.36808537]
[1746590880558,5.10071666,146.51,146.49,14.36808537]
[1746590880762,5.10071666,146.51,146.48,14.36808537]
[1746590881763,11.92632394,146.51,146.45,6.82826903]
[1746590881936,19.46880203,146.5,146.45,14.36808537]
[1746590882144,14.36808537,146.49,146.45,14.36808537]
[1746590882643,14.36808537,146.49,146.44,23.22856366]
[1746590882849,14.36808537,146.49,146.45,14.36808537]
[1746590883261,21.19453632,146.49,146.45,14.36808537]
[1746590883957,6.82645095,146.49,146.45,14.36808537]
[1746590884574,144.52645095,146.49,146.45,14.36808537]
[1746590884755,137.7,146.49,146.45,21.19630265]
[1746590886494,5.11024755,146.48,146.46,21.19581154]
[1746590886981,5.11024755,146.48,146.46,14.36808537]
[1746590887345,5.11024755,146.48,146.45,21.19623531]
[1746590887782,5.11024755,146.47,146.45,21.19623531]
[1746590889082,5.11024755,146.46,146.45,21.19623531]
[1746590891972,5.11024755,146.46,146.44,6.82851841]
[1746590892175,5.11024755,146.46,146.45,14.36808537]
[1746590892673,5.11024755,146.46,146.44,14.36808537]
[1746590893054,5.11024755,146.46,146.45,14.36808537]
[1746590893666,5.11024755,146.46,146.44,16.76808537]
[1746590893864,5.11024755,146.46,146.44,14.36808537]
[1746590894552,5.11024755,146.45,146.44,14.36808537]
[1746590895050,5.11024755,146.45,146.44,21.19682068]
[1746590897263,137.7,146.49,146.44,21.19682068]
[1746590897475,137.7,146.49,146.45,14.36808537]